[Event "1st SOA-GM Festival 2024"]
[Site "Bhubaneswar"]
[Date "2024.02.03"]
[Round "9.19"]
[White "Singgih, Diajeng Theresa"]
[Black "Nithin Babu"]
[Result "0-1"]
[ECO "C79"]
[WhiteElo "1867"]
[BlackElo "2177"]
[Annotator "RC"]
[PlyCount "76"]
[EventDate "2024.02.01"]
[EventType "swiss"]
[EventCountry "IND"]
[SourceTitle "playchess.com"]
[Source "ChessBase"]
[SourceQuality "1"]
[TimeControl "5400+30"]

1. e4 {[%emt 0:00:01]} e5 {[%emt 0:02:37]} 2. Nf3 {[%emt 0:00:09]} Nc6 {[%emt 0:00:17]} 3. Bb5 {[%emt 0:00:21]} a6 {[%emt 0:00:07]} 4. Ba4 {[%emt 0:00:13]} Nf6 {[%emt 0:00:08]} 5. O-O {[%emt 0:00:15]} d6 {[%emt 0:00:07]} 6. c3 {[%emt 0:01:53]} Bd7 {[%emt 0:00:09]} 7. d4 {[%emt 0:00:40]} g6 {[%emt 0:03:02]} 8. Bxc6 {[%emt 0:05:02]} Bxc6 {[%emt 0:00:08]} 9. dxe5 {[%emt 0:00:07]} Nxe4 {[%emt 0:02:50]} 10. Qe2 {[%emt 0:03:45]} Nf6 {[%emt 1:26:05]} 11. Qd1 Ne4 {[%emt 0:00:00]} 12. Qe2 {[%emt 0:01:00]} Qd7 {[%emt 0:00:00]} 13. Nd4 {[%emt 0:17:03]} O-O-O {[%emt 0:00:00]} 14. e6 {[%emt 0:06:38]} fxe6 {[%emt 0:00:00]} 15. f3 {[%emt 0:00:17]} Nc5 {[%emt 0:00:00]} 16. b4 {[%emt 0:01:19]} Na4 {[%emt 0:00:00]} 17. Bg5 {[%emt 0:00:43]} Re8 {[%emt 0:00:00]} 18. Bf6 {[%emt 1:00:04]} Rg8 {[%emt 0:00:00]} 19. c4 {[%emt 0:00:00]} e5 {[%emt 0:00:00]} 20. Nxc6 {[%emt 0:00:00]} Qxc6 {[%emt 0:00:00]} 21. b5 {[%emt 0:00:00]} Qb6+ {[%emt 0:00:00]} 22. Kh1 {[%emt 0:00:00]} Bh6 {[%emt 0:00:00]} 23. Na3 {[%emt 0:00:00]} Qe3 {[%emt 0:00:00]} 24. Qxe3 {[%emt 0:00:00]} Bxe3 {[%emt 0:00:00]} 25. bxa6 {[%emt 0:00:00]} bxa6 {[%emt 0:00:00]} 26. Nc2 {[%emt 0:00:00]} Bc5 {[%emt 0:00:00]} 27. Rab1 {[%emt 0:00:00]} g5 {[%emt 0:00:00]} 28. Nb4 {[%emt 0:00:00]} Bxb4 {[%emt 0:00:00]} 29. Rxb4 {[%emt 0:00:00]} Nc5 {[%emt 0:00:00]} 30. f4 {[%emt 0:00:00]} gxf4 {[%emt 0:00:00]} 31. Bh4 {[%emt 0:00:00]} Kd7 {[%emt 0:00:00]} 32. Bf2 {[%emt 0:00:00]} Nd3 {[%emt 0:00:00]} 33. Ra4 {[%emt 0:00:00]} e4 {[%emt 0:00:00]} 34. Be1 {[%emt 0:00:00]} e3 {[%emt 0:00:00]} 35. Ra3 {[%emt 0:00:00]} e2 {[%emt 0:00:00]} 36. Rg1 {[%emt 0:00:00]} Re3 {[%emt 0:00:00]} 37. Rxa6 {[%emt 0:00:00]} f3 {[%emt 0:00:00]} 38. Ra3 {[%emt 0:00:00]} f2 {[%emt 0:00:00]} 0-1

[Event "1st SOA-GM Festival 2024"]
[Site "Bhubaneswar"]
[Date "2024.02.03"]
[Round "9.20"]
[White "Mohota, Nisha"]
[Black "Sharnarthi Viresh"]
[Result "1-0"]
[ECO "B52"]
[WhiteElo "2136"]
[BlackElo "1926"]
[Annotator "NA"]
[PlyCount "86"]
[EventDate "2024.02.01"]
[EventType "swiss"]
[EventCountry "IND"]
[SourceTitle "playchess.com"]
[Source "ChessBase"]
[SourceQuality "1"]
[TimeControl "5400+30"]

1. e4 {[%emt 0:00:06]} c5 {[%emt 0:00:05]} 2. Nf3 {[%emt 0:00:07]} d6 {[%emt 0:00:03]} 3. Bb5+ {[%emt 0:00:26]} Bd7 {[%emt 0:00:12]} 4. Bxd7+ {[%emt 0:00:09]} Qxd7 {[%emt 0:00:08]} 5. c4 {[%emt 0:00:21]} Nc6 {[%emt 0:00:14]} 6. d4 {[%emt 0:00:24]} cxd4 {[%emt 0:00:05]} 7. Nxd4 {[%emt 0:00:04]} Nf6 {[%emt 0:00:12]} 8. Nc3 {[%emt 0:00:07]} g6 {[%emt 0:00:05]} 9. h3 {[%emt 0:00:25]} Bg7 {[%emt 0:00:25]} 10. Be3 {[%emt 0:00:03]} O-O {[%emt 0:01:55]} 11. O-O {[%emt 0:00:14]} Rac8 {[%emt 0:04:21] 11...a6 is the hot move. B52: Sicilian: Moscow Variation with 3...Bd7.} 12. b3 a6 {[%emt 0:19:52]} 13. Rc1 {[%emt 0:00:53]} b5 {[%emt 0:15:35]} 14. cxb5 {[%emt 0:05:36]} Nxd4 {[%emt 0:00:07]} 15. Bxd4 {[%emt 0:00:11]} axb5 {[%emt 0:01:22]} 16. Qd3 {[%emt 0:09:46]} Bh6 $146 {[%emt 0:15:24]} ({Predecessor:} 16... Rb8 17. Bxf6 Bxf6 18. Nd5 Bh4 19. Rc7 Qd8 20. Rc6 e6 21. Rxd6 Qa5 22. Ne3 Qxa2 {½-½ Garcia,G (2470)-Delgado Ramirez,N (2530) Guayaquil zt 2.3 2003 (3)}) 17. Bxf6 {[%emt 0:07:18]} Bxc1 {[%emt 0:02:14]} 18. Nd5 {[%emt 0:04:38]} Rfe8 {[%emt 0:00:02]} 19. Bxe7 {[%emt 0:02:31]} Bb2 {[%emt 0:00:06]} 20. Bf6 {[%emt 0:00:56]} Bc1 $18 {[%emt 0:03:49]} 21. Ba1 {[%emt 0:22:18]} Bg5 {[%emt 0:00:35]} 22. Nb6 {[%emt 0:08:48]} Qc6 {[%emt 0:00:20]} 23. Nxc8 {[%emt 0:01:21]} Rxc8 {[%emt 0:00:02]} 24. Qd4 {[%emt 0:00:26]} Kf8 {[%emt 0:00:30]} 25. g3 {[%emt 0:07:22]} Bd8 {[%emt 0:02:58]} 26. Qh8+ {[%emt 0:06:12]} Ke7 {[%emt 0:00:31]} 27. Bf6+ {[%emt 0:00:11]} Kd7 {[%emt 0:00:23]} 28. Bxd8 {[%emt 0:00:03]} Rxd8 {[%emt 0:00:06]} 29. Qxh7 {[%emt 0:00:05]} Rf8 {[%emt 0:00:57]} 30. Qg7 {[%emt 0:01:50]} Ke7 {[%emt 0:00:02]} 31. Qd4 {[%emt 0:02:29]} Ra8 {[%emt 0:00:06]} 32. Ra1 {[%emt 0:00:30]} f6 {[%emt 0:00:30]} 33. a4 {[%emt 0:00:30]} Ra5 {[%emt 0:00:30]} 34. axb5 {[%emt 0:00:30]} Qc5 {[%emt 0:00:30]} 35. Rd1 {[%emt 0:00:30]} Rxb5 {[%emt 0:00:30]} 36. Qxc5 {[%emt 0:00:30]} dxc5 {[%emt 0:00:30]} 37. Rd3 {[%emt 0:00:30]} Rb4 {[%emt 0:00:30]} 38. f3 {[%emt 0:00:30]} g5 {[%emt 0:00:30]} 39. Kf2 {[%emt 0:00:30]} c4 {[%emt 0:00:30]} 40. bxc4 {[%emt 0:00:30]} Rxc4 {[%emt 0:00:30]} 41. Rd2 {[%emt 0:00:30]} Ke6 {[%emt 0:00:30]} 42. h4 {[%emt 0:00:30]} g4 {[%emt 0:00:30]} 43. fxg4 {[%emt 0:00:30]} Rxe4 {[%emt 0:00:30]} 1-0

[Event "1st SOA-GM Festival 2024"]
[Site "Bhubaneswar"]
[Date "2024.02.04"]
[Round "10.1"]
[White "Das, Sayantan"]
[Black "Ghosh, Diptayan"]
[Result "1/2-1/2"]
[ECO "C47"]
[WhiteElo "2514"]
[BlackElo "2568"]
[Annotator "RC"]
[PlyCount "39"]
[EventDate "2024.02.01"]
[EventType "swiss"]
[EventCountry "IND"]
[SourceTitle "playchess.com"]
[Source "ChessBase"]
[SourceQuality "1"]
[TimeControl "5400+30"]

1. e4 {[%emt 0:00:09]} e5 {[%emt 0:00:35]} 2. Nf3 {[%emt 0:00:08]} Nc6 {[%emt 0:00:04]} 3. Nc3 {[%emt 0:00:21]} Nf6 {[%emt 0:00:30]} 4. d4 {[%emt 0:00:20]} Bb4 {[%emt 0:05:43]} 5. Nxe5 {[%emt 0:00:44]} Bxc3+ {[%emt 0:00:08]} 6. bxc3 {[%emt 0:00:05]} Qe7 {[%emt 0:00:03]} 7. Bd3 {[%emt 0:00:23]} Nxe5 {[%emt 0:03:03]} 8. dxe5 {[%emt 0:00:06]} Qxe5 {[%emt 0:00:03]} 9. O-O {[%emt 0:00:08]} d6 {[%emt 0:04:02]} 10. Qe1 {[%emt 0:00:14]} Nd7 {[%emt 1:21:19]} 11. Be3 {[%emt 0:17:58]} O-O {[%emt 0:00:00]} 12. Bd4 {[%emt 0:00:16]} Qe7 {[%emt 0:00:00]} 13. f3 {[%emt 0:00:56]} Nc5 {[%emt 0:00:00]} 14. Qd2 {[%emt 0:02:36]} f6 {[%emt 0:00:00]} 15. Rab1 {[%emt 0:00:35]} b6 {[%emt 0:00:00]} 16. a3 {[%emt 0:00:58]} Be6 {[%emt 0:00:00]} 17. Kh1 {[%emt 0:00:15]} Kh8 {[%emt 0:00:00]} 18. Kg1 {[%emt 0:00:10]} Kg8 {[%emt 0:00:00]} 19. Kh1 {[%emt 0:00:07]} Kh8 {[%emt 0:00:00]} 20. Kg1 {[%emt 0:00:08]} 1/2-1/2

[Event "1st SOA-GM Festival 2024"]
[Site "Bhubaneswar"]
[Date "2024.02.04"]
[Round "10.2"]
[White "Neelash Saha"]
[Black "Vignesh Advaith Vemula"]
[Result "1-0"]
[ECO "D37"]
[WhiteElo "2446"]
[BlackElo "2028"]
[Annotator "RC"]
[PlyCount "61"]
[EventDate "2024.02.01"]
[EventType "swiss"]
[EventCountry "IND"]
[SourceTitle "playchess.com"]
[Source "ChessBase"]
[SourceQuality "1"]
[TimeControl "5400+30"]

1. d4 {[%emt 0:00:06]} d5 {[%emt 0:00:05]} 2. c4 {[%emt 0:00:03]} e6 {[%emt 0:00:06]} 3. Nf3 {[%emt 0:00:05]} Nf6 {[%emt 0:00:04]} 4. Nc3 {[%emt 0:00:13]} Be7 {[%emt 0:00:05]} 5. Bf4 {[%emt 0:00:15]} O-O {[%emt 0:00:05]} 6. e3 {[%emt 0:00:03]} b6 {[%emt 0:00:03]} 7. Bd3 {[%emt 0:00:42]} Bb7 {[%emt 0:00:05]} 8. cxd5 {[%emt 0:02:05]} exd5 {[%emt 0:00:05]} 9. O-O {[%emt 0:00:47]} c5 {[%emt 0:00:12]} 10. dxc5 {[%emt 0:01:22]} bxc5 {[%emt 0:00:07]} 11. Qe2 {[%emt 0:02:01]} Nbd7 {[%emt 0:02:08]} 12. Rfd1 {[%emt 0:01:30]} Qb6 {[%emt 0:04:57]} 13. b3 {[%emt 0:04:15]} Rfd8 {[%emt 0:06:15]} 14. Rac1 {[%emt 0:01:52]} Rac8 {[%emt 0:00:19]} 15. Bf5 {[%emt 0:01:42]} g6 {[%emt 0:07:42]} 16. Bh3 {[%emt 0:01:25]} Ra8 {[%emt 0:01:10]} 17. Bg5 {[%emt 0:04:09]} Qc6 {[%emt 0:15:09]} 18. Nxd5 {[%emt 0:09:15]} Nxd5 {[%emt 0:01:11]} 19. Bxe7 {[%emt 0:00:03]} Re8 {[%emt 0:05:20]} 20. Bxd7 {[%emt 0:04:15]} Qxd7 {[%emt 0:00:07]} 21. Bxc5 {[%emt 0:00:03]} Qg4 {[%emt 0:01:01]} 22. Bd6 {[%emt 0:00:30]} Rac8 {[%emt 0:01:40]} 23. h3 {[%emt 0:05:31]} Qe6 {[%emt 0:06:45]} 24. Rxc8 {[%emt 0:01:07]} Rxc8 {[%emt 0:00:03]} 25. Be5 {[%emt 0:00:20]} f6 {[%emt 0:00:29]} 26. e4 {[%emt 0:00:59]} Nb6 {[%emt 0:00:33]} 27. Bd4 {[%emt 0:04:50]} Qxe4 {[%emt 0:06:26]} 28. Qxe4 {[%emt 0:00:19]} Bxe4 {[%emt 0:00:03]} 29. Bxf6 {[%emt 0:00:12]} Rc2 {[%emt 0:00:15]} 30. Ng5 {[%emt 0:01:54]} Bd5 {[%emt 0:00:58]} 31. Re1 {[%emt 0:03:52]} 1-0

[Event "1st SOA-GM Festival 2024"]
[Site "Bhubaneswar"]
[Date "2024.02.04"]
[Round "10.3"]
[White "Panda Sambit"]
[Black "Subhayan Kundu"]
[Result "1-0"]
[ECO "E11"]
[WhiteElo "2404"]
[BlackElo "2385"]
[Annotator "RC"]
[PlyCount "109"]
[EventDate "2024.02.01"]
[EventType "swiss"]
[EventCountry "IND"]
[SourceTitle "playchess.com"]
[Source "ChessBase"]
[SourceQuality "1"]
[TimeControl "5400+30"]

1. d4 {[%emt 0:00:25]} Nf6 {[%emt 0:02:40]} 2. c4 {[%emt 0:00:54]} e6 {[%emt 0:00:06]} 3. Nf3 {[%emt 0:00:07]} Bb4+ {[%emt 0:00:08]} 4. Nbd2 {[%emt 0:00:05]} b6 {[%emt 0:00:28]} 5. a3 {[%emt 0:04:25]} Bxd2+ {[%emt 0:00:10]} 6. Nxd2 {[%emt 0:00:09]} Bb7 {[%emt 0:00:27]} 7. e3 {[%emt 0:00:17]} O-O {[%emt 0:01:02]} 8. b3 {[%emt 0:02:20]} Qe7 {[%emt 0:01:12]} 9. Bb2 {[%emt 0:00:20]} d5 {[%emt 0:00:11]} 10. Rc1 {[%emt 0:05:26]} dxc4 {[%emt 0:01:02]} 11. Nxc4 {[%emt 0:03:14]} Nbd7 {[%emt 0:00:57]} 12. f3 {[%emt 0:02:29]} Rfd8 {[%emt 0:10:11]} 13. Be2 {[%emt 0:21:30]} c5 {[%emt 0:06:23]} 14. dxc5 {[%emt 0:12:43]} Nxc5 {[%emt 0:01:01]} 15. Qc2 {[%emt 0:00:05]} Rac8 {[%emt 0:11:23]} 16. b4 {[%emt 0:00:58]} b5 {[%emt 0:18:10]} 17. bxc5 {[%emt 0:02:44]} Qxc5 {[%emt 0:01:25]} 18. Bd4 {[%emt 0:09:00]} Qe7 {[%emt 0:02:14]} 19. Qb2 {[%emt 0:07:30]} bxc4 {[%emt 0:00:54]} 20. Rxc4 {[%emt 0:01:36]} Rxc4 {[%emt 0:03:14]} 21. Bxc4 {[%emt 0:00:07]} Bd5 {[%emt 0:00:15]} 22. Be2 {[%emt 0:03:20]} Nd7 {[%emt 0:03:55]} 23. e4 {[%emt 0:01:56]} e5 {[%emt 0:13:59]} 24. Bf2 {[%emt 0:02:13]} Rb8 {[%emt 0:02:18]} 25. Qc1 {[%emt 0:01:12]} Be6 {[%emt 0:00:17]} 26. O-O {[%emt 0:00:17]} Rb3 {[%emt 0:01:37]} 27. a4 {[%emt 0:00:23]} Qb4 {[%emt 0:04:46]} 28. Qc7 {[%emt 0:02:05]} a5 {[%emt 0:04:41]} 29. Bb5 {[%emt 0:01:46]} Rc3 {[%emt 0:00:06]} 30. Qa7 {[%emt 0:00:28]} Nf8 {[%emt 0:02:45]} 31. Be1 {[%emt 0:01:08]} Qc5+ {[%emt 0:00:05]} 32. Qxc5 {[%emt 0:00:03]} Rxc5 {[%emt 0:00:02]} 33. Bxa5 {[%emt 0:00:05]} Bd7 {[%emt 0:00:20]} 34. Bb4 {[%emt 0:03:49]} Rc8 {[%emt 0:00:25]} 35. Bxd7 {[%emt 0:02:11]} Nxd7 {[%emt 0:00:02]} 36. Rd1 {[%emt 0:00:56]} Nb8 {[%emt 0:00:07]} 37. Rd5 {[%emt 0:00:41]} f6 {[%emt 0:00:06]} 38. a5 {[%emt 0:00:25]} Kf7 {[%emt 0:00:09]} 39. Bc5 {[%emt 0:01:43]} Na6 {[%emt 0:00:48]} 40. Bb6 {[%emt 0:00:42]} Ke6 {[%emt 0:00:09]} 41. Rd8 {[%emt 0:00:42]} Rxd8 {[%emt 0:06:47]} 42. Bxd8 {[%emt 0:00:02]} Kd7 {[%emt 0:00:06]} 43. Bb6 {[%emt 0:00:03]} Kc6 {[%emt 0:00:16]} 44. Kf2 {[%emt 0:00:10]} Kb5 {[%emt 0:00:08]} 45. Kg3 {[%emt 0:02:58]} Nb4 {[%emt 0:01:37]} 46. f4 Nd3 {[%emt 0:00:30]} 47. fxe5 Nxe5 {[%emt 0:00:30]} 48. Kf4 Nc4 {[%emt 0:00:30]} 49. h4 Ka6 {[%emt 0:00:30]} 50. h5 Kb7 {[%emt 0:00:30]} 51. g4 Ka6 {[%emt 0:00:30]} 52. g5 fxg5+ {[%emt 0:00:30]} 53. Kxg5 Nd6 {[%emt 0:00:30]} 54. e5 Ne4+ {[%emt 0:00:30]} 55. Kh4 1-0

[Event "1st SOA-GM Festival 2024"]
[Site "Bhubaneswar"]
[Date "2024.02.04"]
[Round "10.4"]
[White "Shahil Dey"]
[Black "Sammed Jaykumar, Shete"]
[Result "1/2-1/2"]
[ECO "D02"]
[WhiteElo "2363"]
[BlackElo "2441"]
[Annotator "RC"]
[PlyCount "80"]
[EventDate "2024.02.01"]
[EventType "swiss"]
[EventCountry "IND"]
[SourceTitle "playchess.com"]
[Source "ChessBase"]
[SourceQuality "1"]
[TimeControl "5400+30"]

1. Nf3 {[%emt 0:00:03]} d5 {[%emt 0:00:30]} 2. g3 {[%emt 0:00:05]} g6 {[%emt 0:01:40]} 3. Bg2 {[%emt 0:00:29]} Bg7 {[%emt 0:00:06]} 4. d4 {[%emt 0:00:11]} Nd7 {[%emt 0:00:46]} 5. O-O {[%emt 0:00:27]} Nb6 {[%emt 0:00:13]} 6. Na3 {[%emt 0:10:05]} Nf6 {[%emt 0:04:21]} 7. c4 {[%emt 0:01:56]} dxc4 {[%emt 0:05:13]} 8. Nxc4 {[%emt 0:00:21]} Nxc4 {[%emt 0:00:05]} 9. Qa4+ {[%emt 0:00:07]} c6 {[%emt 0:00:03]} 10. Qxc4 {[%emt 0:00:06]} Be6 {[%emt 0:00:03]} 11. Qb4 {[%emt 0:01:24]} Qb6 {[%emt 0:00:45]} 12. Qa3 {[%emt 0:00:12]} Bd5 {[%emt 0:05:29]} 13. Bf4 {[%emt 0:06:13]} O-O {[%emt 0:03:53]} 14. Be5 {[%emt 0:00:04]} Rfe8 {[%emt 0:00:29]} 15. Nd2 {[%emt 0:01:56]} Bxg2 {[%emt 0:08:05]} 16. Kxg2 {[%emt 0:00:21]} Bf8 {[%emt 0:00:24]} 17. Nf3 {[%emt 0:04:28]} Nd7 {[%emt 0:01:18]} 18. Qb3 {[%emt 0:06:56]} Qxb3 {[%emt 0:07:28]} 19. axb3 {[%emt 0:00:05]} Nxe5 {[%emt 0:59:09]} 20. Nxe5 {[%emt 0:00:23]} Red8 {[%emt 0:00:00]} 21. e3 {[%emt 0:00:14]} Rd5 {[%emt 0:00:00]} 22. Nd3 {[%emt 0:03:45]} Rb5 {[%emt 0:00:00]} 23. b4 {[%emt 0:00:59]} e5 {[%emt 0:00:00]} 24. Nxe5 {[%emt 0:02:22]} Rxb4 {[%emt 0:00:00]} 25. Nd3 {[%emt 0:02:50]} Rb3 {[%emt 0:00:00]} 26. Rfd1 {[%emt 0:00:02]} a6 {[%emt 0:00:00]} 27. Kf3 {[%emt 0:00:10]} Rd8 {[%emt 0:00:00]} 28. Ke2 {[%emt 0:00:29]} Rd5 {[%emt 0:00:00]} 29. Kd2 {[%emt 0:03:00]} Rbb5 {[%emt 0:00:00]} 30. Kc2 {[%emt 0:08:04]} c5 {[%emt 0:00:00]} 31. Ra4 {[%emt 0:07:04]} cxd4 {[%emt 0:00:00]} 32. Rxd4 {[%emt 0:01:14]} Bg7 {[%emt 0:00:00]} 33. Rxd5 {[%emt 0:00:21]} Rxd5 {[%emt 0:00:00]} 34. b4 {[%emt 0:04:34]} Kf8 {[%emt 0:00:00]} 35. Rb1 {[%emt 0:02:51]} b6 {[%emt 0:02:32]} 36. Rb3 {[%emt 0:04:00]} Ke7 {[%emt 0:00:18]} 37. Ra3 {[%emt 0:01:27]} a5 {[%emt 0:00:03]} 38. e4 {[%emt 0:02:14]} Rd4 {[%emt 0:04:59]} 39. bxa5 {[%emt 0:01:49]} bxa5 {[%emt 0:00:04]} 40. Rxa5 {[%emt 0:00:20]} Rxe4 {[%emt 0:00:08]} 1/2-1/2

[Event "1st SOA-GM Festival 2024"]
[Site "Bhubaneswar"]
[Date "2024.02.04"]
[Round "10.5"]
[White "Fawzy, Adham"]
[Black "Aquino, Jethro Dino"]
[Result "0-1"]
[ECO "B40"]
[WhiteElo "2522"]
[BlackElo "2166"]
[Annotator "RC"]
[PlyCount "106"]
[EventDate "2024.02.01"]
[EventType "swiss"]
[EventCountry "IND"]
[SourceTitle "playchess.com"]
[Source "ChessBase"]
[SourceQuality "1"]
[TimeControl "5400+30"]

1. e4 {[%emt 0:03:44]} c5 {[%emt 0:00:14]} 2. Nf3 {[%emt 0:00:20]} e6 {[%emt 0:00:35]} 3. g3 {[%emt 0:00:25]} Nc6 {[%emt 0:00:21]} 4. Bg2 {[%emt 0:01:40]} Nf6 {[%emt 0:00:08]} 5. Qe2 {[%emt 0:00:39]} e5 {[%emt 0:00:15]} 6. Nc3 {[%emt 0:00:27]} d6 {[%emt 0:03:45]} 7. Nd5 {[%emt 0:01:44]} Nxd5 {[%emt 0:22:24]} 8. exd5 {[%emt 0:01:09]} Nb8 {[%emt 0:02:42]} 9. b4 {[%emt 0:03:54]} cxb4 {[%emt 0:03:15]} 10. d4 {[%emt 0:02:31]} Be7 {[%emt 0:01:00]} 11. dxe5 {[%emt 0:03:39]} dxe5 {[%emt 0:00:25]} 12. Nxe5 {[%emt 0:00:41]} O-O {[%emt 0:00:31]} 13. O-O {[%emt 0:02:33]} Bf6 {[%emt 0:01:28]} 14. Bb2 {[%emt 0:04:07]} Bf5 {[%emt 0:10:46]} 15. g4 {[%emt 0:06:18]} Bg6 {[%emt 0:00:26]} 16. g5 {[%emt 0:08:51]} Bxe5 {[%emt 0:05:16]} 17. Qxe5 {[%emt 0:01:58]} f6 {[%emt 0:00:05]} 18. Qd4 {[%emt 0:04:51]} Qd6 {[%emt 0:04:32]} 19. a3 {[%emt 0:14:17]} Nd7 {[%emt 0:15:00]} 20. Qxb4 {[%emt 0:02:00]} Nc5 {[%emt 0:07:16]} 21. gxf6 {[%emt 0:00:59]} gxf6 {[%emt 0:00:31]} 22. Rfe1 {[%emt 0:01:35]} Rae8 {[%emt 0:01:38]} 23. Bd4 {[%emt 0:06:17]} b6 {[%emt 0:00:14]} 24. Bxc5 {[%emt 0:00:51]} Qxc5 {[%emt 0:00:03]} 25. Qxc5 {[%emt 0:01:36]} bxc5 {[%emt 0:00:05]} 26. Bh3 {[%emt 0:00:51]} f5 {[%emt 0:04:16]} 27. c4 {[%emt 0:06:40]} Kf7 {[%emt 0:02:36]} 28. f4 {[%emt 0:00:52]} Rxe1+ {[%emt 0:00:32]} 29. Rxe1 {[%emt 0:00:02]} Rb8 {[%emt 0:00:05]} 30. d6 {[%emt 0:03:56]} Rd8 {[%emt 0:00:37]} 31. Re5 {[%emt 0:03:53]} Rxd6 {[%emt 0:00:05]} 32. Rxc5 {[%emt 0:00:39]} Rd3 {[%emt 0:00:44]} 33. Bg2 {[%emt 0:02:23]} Rxa3 {[%emt 0:00:07]} 34. Rc8 {[%emt 0:04:10]} a5 {[%emt 0:05:39]} 35. Ra8 {[%emt 0:01:38]} a4 {[%emt 0:02:10]} 36. c5 {[%emt 0:01:44]} Rc3 {[%emt 0:00:31]} 37. Bd5+ {[%emt 0:01:17]} Kf6 {[%emt 0:01:48]} 38. Ra6+ {[%emt 0:00:34]} Ke7 {[%emt 0:00:11]} 39. Ra5 {[%emt 0:00:26]} Be8 {[%emt 0:02:48]} 40. Kf2 {[%emt 0:00:11]} a3 {[%emt 0:00:48]} 41. Ke2 {[%emt 0:00:43]} Rh3 {[%emt 0:00:51]} 42. Kd2 {[%emt 0:01:30]} Rxh2+ {[%emt 0:00:32]} 43. Kd3 {[%emt 0:00:01]} Rf2 {[%emt 0:00:54]} 44. Kd4 {[%emt 0:01:55]} Rxf4+ {[%emt 0:00:07]} 45. Ke5 {[%emt 0:00:01]} Ra4 {[%emt 0:00:09]} 46. Rxa4 {[%emt 0:00:47]} Bxa4 {[%emt 0:00:04]} 47. Kxf5 {[%emt 0:01:51]} Bc2+ {[%emt 0:00:25]} 48. Kg5 {[%emt 0:00:27]} Bb1 {[%emt 0:01:10]} 49. Kh6 {[%emt 0:00:37]} Kd7 {[%emt 0:00:37]} 50. Kg7 {[%emt 0:00:42]} h5 {[%emt 0:00:41]} 51. Kf6 {[%emt 0:00:02]} h4 {[%emt 0:00:15]} 52. Ke5 {[%emt 0:00:06]} h3 {[%emt 0:01:19]} 53. Kd4 {[%emt 0:00:01]} a2 {[%emt 0:00:13]} 0-1

[Event "1st SOA-GM Festival 2024"]
[Site "Bhubaneswar"]
[Date "2024.02.04"]
[Round "10.6"]
[White "Nguyen Van Huy"]
[Black "Savchenko, Boris"]
[Result "1/2-1/2"]
[ECO "D85"]
[WhiteElo "2364"]
[BlackElo "2489"]
[Annotator "RC"]
[PlyCount "115"]
[EventDate "2024.02.01"]
[EventType "swiss"]
[EventCountry "IND"]
[SourceTitle "playchess.com"]
[Source "ChessBase"]
[SourceQuality "1"]
[TimeControl "5400+30"]

1. d4 {[%emt 0:00:35]} g6 {[%emt 0:00:57]} 2. c4 {[%emt 0:00:50]} Nf6 {[%emt 0:00:18]} 3. Nc3 {[%emt 0:00:24]} d5 {[%emt 0:00:06]} 4. cxd5 {[%emt 0:02:40]} Nxd5 {[%emt 0:00:07]} 5. Bd2 {[%emt 0:00:36]} Nb6 {[%emt 0:00:51]} 6. e4 {[%emt 0:01:53]} Bg7 {[%emt 0:06:17]} 7. Be3 {[%emt 0:00:51]} O-O {[%emt 0:01:29]} 8. h3 {[%emt 0:00:44]} Nc6 {[%emt 0:06:37]} 9. Nf3 {[%emt 0:01:06]} f5 {[%emt 0:00:30]} 10. exf5 {[%emt 0:01:35]} Bxf5 {[%emt 0:00:24]} 11. Qb3+ {[%emt 0:00:42]} e6 {[%emt 0:09:21]} 12. g4 {[%emt 0:14:11]} Bc2 {[%emt 0:02:11]} 13. Qxc2 {[%emt 0:04:41]} Rxf3 {[%emt 0:00:07]} 14. Qe4 {[%emt 0:02:34]} Rf7 {[%emt 0:29:02]} 15. O-O-O {[%emt 0:03:25]} Qd6 {[%emt 0:04:18]} 16. h4 {[%emt 0:08:40]} Raf8 {[%emt 0:00:10]} 17. h5 {[%emt 0:04:38]} Rf4 {[%emt 0:00:06]} 18. Bxf4 {[%emt 0:01:00]} Rxf4 {[%emt 0:00:24]} 19. Qg2 {[%emt 0:02:49]} g5 {[%emt 0:00:15]} 20. Bd3 {[%emt 0:05:19]} Rxd4 {[%emt 0:00:49]} 21. Be4 {[%emt 0:06:17]} Qf4+ {[%emt 0:18:33]} 22. Kb1 {[%emt 0:08:14]} Rb4 {[%emt 0:06:57]} 23. a3 {[%emt 0:02:59]} Rxb2+ {[%emt 0:01:14]} 24. Kxb2 {[%emt 0:00:06]} Na4+ {[%emt 0:00:05]} 25. Kc2 {[%emt 0:01:30]} Nxc3 {[%emt 0:00:05]} 26. Bxc6 {[%emt 0:01:14]} Nxd1 {[%emt 0:00:13]} 27. Rxd1 {[%emt 0:03:05]} Qc4+ {[%emt 0:00:11]} 28. Kd2 {[%emt 0:00:09]} bxc6 {[%emt 0:04:36]} 29. Qg3 {[%emt 0:09:08]} c5 {[%emt 0:04:24]} 30. h6 {[%emt 0:02:06]} Bxh6 {[%emt 0:00:09]} 31. Ke1 {[%emt 0:03:22]} Qe4+ {[%emt 0:01:48]} 32. Qe3 {[%emt 0:01:28]} Qxg4 {[%emt 0:00:15]} 33. Qxc5 {[%emt 0:02:41]} Bf8 {[%emt 0:00:52]} 34. Qxc7 {[%emt 0:01:17]} Qg1+ {[%emt 0:02:31]} 35. Ke2 {[%emt 0:00:07]} Qg4+ {[%emt 0:00:02]} 36. Ke1 {[%emt 0:00:05]} Qe4+ {[%emt 0:00:23]} 37. Kf1 {[%emt 0:00:11]} Qh1+ {[%emt 0:01:33]} 38. Ke2 {[%emt 0:00:02]} Qe4+ {[%emt 0:00:05]} 39. Kf1 {[%emt 0:00:02]} h5 {[%emt 0:01:04]} 40. Qxa7 {[%emt 0:01:10]} Qc4+ {[%emt 0:00:38]} 41. Ke1 {[%emt 0:00:23]} Qc3+ {[%emt 0:00:04]} 42. Ke2 {[%emt 0:01:09]} Qc4+ {[%emt 0:00:13]} 43. Ke1 {[%emt 0:00:29]} Qe4+ {[%emt 0:01:13]} 44. Kf1 {[%emt 0:00:08]} h4 {[%emt 0:00:13]} 45. Qd4 {[%emt 0:02:22]} Qf5 {[%emt 0:00:34]} 46. Qd3 {[%emt 0:00:33]} Qf6 {[%emt 0:00:11]} 47. Kg2 {[%emt 0:01:37]} g4 {[%emt 0:00:14]} 48. Qe4 {[%emt 0:00:51]} Bxa3 {[%emt 0:00:46]} 49. Qxg4+ {[%emt 0:00:14]} Qg7 {[%emt 0:00:13]} 50. Kh3 {[%emt 0:02:06]} Qxg4+ {[%emt 0:00:06]} 51. Kxg4 {[%emt 0:00:03]} Be7 {[%emt 0:00:07]} 52. Rd3 {[%emt 0:00:40]} Kf7 {[%emt 0:00:09]} 53. Kh5 {[%emt 0:00:04]} Kg7 {[%emt 0:02:26]} 54. Re3 {[%emt 0:00:07]} Kf7 {[%emt 0:00:06]} 55. Kh6 {[%emt 0:00:10]} Bc5 {[%emt 0:00:21]} 56. Rf3+ {[%emt 0:00:06]} Ke7 {[%emt 0:00:35]} 57. Kg5 {[%emt 0:00:08]} h3 {[%emt 0:00:07]} 58. Rxh3 {[%emt 0:01:17]} 1/2-1/2